[Event "Vezerkepzo GM March 2022"]
[Site "Budapest"]
[Date "2022.03.17"]
[Round "1.1"]
[White "Prraneeth Vuppala"]
[Black "Ilincic, Zlatko"]
[Result "1-0"]
[ECO "E11"]
[WhiteElo "2400"]
[BlackElo "2331"]
[Annotator "ChessBase"]
[PlyCount "81"]
[EventDate "2022.03.17"]
[EventType "tourn"]
[EventCountry "HUN"]
[SourceTitle "playchess.com"]
[Source "ChessBase"]
[SourceQuality "1"]
[TimeControl "40/5400+30:1800+30"]

1. d4 {[%emt 0:00:11]} Nf6 {[%emt 0:00:20]} 2. c4 {[%emt 0:00:08]} e6 {[%emt 0:00:27]} 3. Nf3 {[%emt 0:00:25]} Bb4+ {[%emt 0:00:21]} 4. Bd2 {[%emt 0:00:26]} c5 {[%emt 0:00:19]} 5. Bxb4 {[%emt 0:00:41]} cxb4 {[%emt 0:00:09]} 6. a3 {[%emt 0:00:21]} bxa3 {[%emt 0:00:25]} 7. Rxa3 {[%emt 0:00:31]} O-O {[%emt 0:00:31]} 8. Nc3 {[%emt 0:00:37]} d6 {[%emt 0:00:39]} 9. e3 {[%emt 0:01:40]} Nc6 {[%emt 0:01:24]} 10. Be2 {[%emt 0:00:56]} Nb4 {[%emt 0:02:15]} 11. O-O {[%emt 0:04:34]} b6 {[%emt 0:02:32]} 12. Na2 {[%emt 0:10:41]} Nxa2 {[%emt 0:02:03]} 13. Rxa2 {[%emt 0:02:07]} Bb7 {[%emt 0:03:25]} 14. b4 {[%emt 0:07:45]} Qc7 {[%emt 0:06:50]} 15. b5 {[%emt 0:18:05]} a6 {[%emt 0:10:36]} 16. bxa6 {[%emt 0:04:29]} Rxa6 {[%emt 0:00:59]} 17. Rxa6 {[%emt 0:05:43]} Bxa6 {[%emt 0:00:08]} 18. Qa4 {[%emt 0:03:36]} Bb7 {[%emt 0:03:28]} 19. Qb4 {[%emt 0:05:17]} Ra8 {[%emt 0:02:32]} 20. Rb1 {[%emt 0:02:39]} Nd7 {[%emt 0:02:48]} 21. Nd2 {[%emt 0:04:12]} h6 {[%emt 0:03:12]} 22. h3 {[%emt 0:00:26]} Ra2 {[%emt 0:08:14]} 23. Bd1 {[%emt 0:11:37]} Bc6 {[%emt 0:01:44]} 24. Rc1 {[%emt 0:01:59]} Qa7 {[%emt 0:13:27]} 25. d5 {[%emt 0:08:18]} exd5 {[%emt 0:13:56]} 26. cxd5 {[%emt 0:00:08]} Bxd5 {[%emt 0:00:13]} 27. Rc8+ {[%emt 0:01:00]} Kh7 {[%emt 0:00:06]} 28. Bc2+ {[%emt 0:01:03]} Rxc2 {[%emt 0:00:14]} 29. Rxc2 {[%emt 0:00:04]} Nc5 {[%emt 0:00:10]} 30. Nc4 {[%emt 0:02:44]} Qa1+ {[%emt 0:05:48]} 31. Kh2 {[%emt 0:00:03]} Qf1 {[%emt 0:01:07]} 32. f3 {[%emt 0:01:51]} Nd3 {[%emt 0:01:38]} 33. Qd2 {[%emt 0:01:36]} b5 {[%emt 0:10:56]} 34. Nb2 {[%emt 0:00:11]} Ne1 {[%emt 0:00:18]} 35. Qxd5 {[%emt 0:00:14]} Nxc2 {[%emt 0:00:34]} 36. Qf5+ {[%emt 0:00:04]} g6 {[%emt 0:01:30]} 37. Qxf7+ {[%emt 0:00:08]} Kh8 {[%emt 0:00:06]} 38. Qe8+ {[%emt 0:00:07]} Kg7 {[%emt 0:00:04]} 39. Qe7+ {[%emt 0:00:03]} Kg8 {[%emt 0:00:06]} 40. Qd8+ {[%emt 0:00:00]} Kf7 {[%emt 0:00:00]} 41. Qc7+ {[%emt 0:00:06]} 1-0

[Event "Vezerkepzo GM March 2022"]
[Site "Budapest"]
[Date "2022.03.17"]
[Round "1.2"]
[White "Vantika Agrawal"]
[Black "Pranav Anand"]
[Result "1/2-1/2"]
[ECO "D12"]
[WhiteElo "2381"]
[BlackElo "2436"]
[Annotator "ChessBase"]
[PlyCount "59"]
[EventDate "2022.03.17"]
[EventType "tourn"]
[EventCountry "HUN"]
[SourceTitle "playchess.com"]
[Source "ChessBase"]
[SourceQuality "1"]
[TimeControl "40/5400+30:1800+30"]

1. d4 {[%emt 0:00:23]} d5 {[%emt 0:00:15]} 2. c4 {[%emt 0:00:35]} c6 {[%emt 0:00:10]} 3. Nf3 {[%emt 0:00:18]} Nf6 {[%emt 0:00:06]} 4. e3 {[%emt 0:00:26]} Bf5 {[%emt 0:00:05]} 5. Nc3 {[%emt 0:00:47]} e6 {[%emt 0:00:05]} 6. Nh4 {[%emt 0:00:39]} Be4 {[%emt 0:00:04]} 7. f3 {[%emt 0:01:00]} Bg6 {[%emt 0:00:06]} 8. Qb3 {[%emt 0:00:23]} Qc7 {[%emt 0:00:06]} 9. Bd2 {[%emt 0:02:28]} Be7 {[%emt 0:00:10]} 10. cxd5 {[%emt 0:03:23]} cxd5 {[%emt 0:01:06]} 11. Nxg6 {[%emt 0:00:50]} hxg6 {[%emt 0:00:00]} 12. O-O-O {[%emt 0:00:20]} Nc6 {[%emt 0:00:00]} 13. Kb1 {[%emt 0:00:48]} a6 {[%emt 0:00:13]} 14. Rc1 {[%emt 0:02:15]} Nd7 {[%emt 0:00:20]} 15. Bd3 {[%emt 0:11:13]} b5 {[%emt 0:12:30]} 16. Nxd5 {[%emt 0:45:44]} exd5 {[%emt 0:01:24]} 17. Qxd5 {[%emt 0:00:17]} Rc8 {[%emt 0:01:56]} 18. Be4 {[%emt 0:00:51]} Ndb8 {[%emt 0:02:46]} 19. Qb3 {[%emt 0:13:42]} Qd6 {[%emt 0:11:53]} 20. Rc2 {[%emt 0:13:18]} Na7 {[%emt 0:07:03]} 21. Rhc1 {[%emt 0:00:44]} Rxc2 {[%emt 0:03:54]} 22. Qxc2 {[%emt 0:00:26]} O-O {[%emt 0:02:00]} 23. Qc7 {[%emt 0:00:27]} Nc8 {[%emt 0:00:03]} 24. Bb7 {[%emt 0:00:22]} Nb6 {[%emt 0:01:09]} 25. Qxd6 {[%emt 0:00:42]} Bxd6 {[%emt 0:00:01]} 26. b3 {[%emt 0:00:33]} N6d7 {[%emt 0:04:08]} 27. g3 {[%emt 0:00:33]} f6 {[%emt 0:04:41]} 28. e4 {[%emt 0:00:17]} g5 {[%emt 0:02:11]} 29. f4 {[%emt 0:00:30]} gxf4 {[%emt 0:00:45]} 30. gxf4 {[%emt 0:00:07]} 1/2-1/2

[Event "Vezerkepzo GM March 2022"]
[Site "Budapest"]
[Date "2022.03.17"]
[Round "1.4"]
[White "Akshat, Khamparia"]
[Black "Kulkarni Bhakti"]
[Result "1/2-1/2"]
[ECO "A45"]
[WhiteElo "2390"]
[BlackElo "2388"]
[Annotator "ChessBase"]
[PlyCount "71"]
[EventDate "2022.03.17"]
[EventType "tourn"]
[EventCountry "HUN"]
[SourceTitle "playchess.com"]
[Source "ChessBase"]
[SourceQuality "1"]
[TimeControl "40/5400+30:1800+30"]

1. d4 {[%emt 0:00:04]} Nf6 {[%emt 0:00:47]} 2. Bf4 {[%emt 0:00:43]} g6 {[%emt 0:00:45]} 3. Nc3 {[%emt 0:00:25]} d5 {[%emt 0:00:32]} 4. Nb5 {[%emt 0:02:08]} Na6 {[%emt 0:00:15]} 5. e3 {[%emt 0:00:30]} c6 {[%emt 0:00:34]} 6. Nc3 {[%emt 0:00:18]} Nc7 {[%emt 0:00:45]} 7. h3 {[%emt 0:02:05]} Bg7 {[%emt 0:00:28]} 8. Nf3 {[%emt 0:00:57]} O-O {[%emt 0:00:42]} 9. Bd3 {[%emt 0:06:00]} Nce8 {[%emt 0:04:12]} 10. O-O {[%emt 0:04:45]} Nd6 {[%emt 0:00:51]} 11. a4 {[%emt 0:05:14]} Nfe4 {[%emt 0:14:10]} 12. Nd2 {[%emt 0:07:37]} Nxc3 {[%emt 0:15:34]} 13. bxc3 {[%emt 0:00:06]} c5 {[%emt 0:00:48]} 14. dxc5 {[%emt 0:05:59]} Ne8 {[%emt 0:00:57]} 15. c4 {[%emt 0:07:44]} dxc4 {[%emt 0:10:06]} 16. Nxc4 {[%emt 0:01:09]} Bxa1 {[%emt 0:15:30]} 17. Qxa1 {[%emt 0:00:11]} Nf6 {[%emt 0:05:49]} 18. Rd1 {[%emt 0:04:10]} Qd5 {[%emt 0:01:00]} 19. Bh6 {[%emt 0:06:55]} Qxc5 {[%emt 0:08:27]} 20. Bxf8 {[%emt 0:03:03]} Kxf8 {[%emt 0:00:02]} 21. Qb2 {[%emt 0:04:13]} Rb8 {[%emt 0:02:15]} 22. Ne5 {[%emt 0:13:30]} Qb6 {[%emt 0:05:52]} 23. Qxb6 {[%emt 0:11:50]} axb6 {[%emt 0:00:01]} 24. Bb5 {[%emt 0:02:48]} Be6 {[%emt 0:01:41]} 25. g4 {[%emt 0:00:50]} Rc8 {[%emt 0:01:45]} 26. c4 {[%emt 0:03:12]} Kg7 {[%emt 0:00:11]} 27. Rd4 {[%emt 0:01:05]} h5 {[%emt 0:02:31]} 28. g5 {[%emt 0:01:27]} Ne8 {[%emt 0:01:54]} 29. Nd7 {[%emt 0:00:44]} Bxh3 {[%emt 0:01:04]} 30. Nxb6 {[%emt 0:00:03]} Rb8 {[%emt 0:00:11]} 31. Kh2 {[%emt 0:00:56]} Bf5 {[%emt 0:02:03]} 32. f3 {[%emt 0:01:34]} Nd6 {[%emt 0:00:46]} 33. e4 {[%emt 0:00:56]} Be6 {[%emt 0:00:01]} 34. c5 {[%emt 0:02:01]} Nxb5 {[%emt 0:00:33]} 35. axb5 {[%emt 0:01:05]} f6 {[%emt 0:00:20]} 36. gxf6+ {[%emt 0:00:34]} 1/2-1/2

[Event "Vezerkepzo GM March 2022"]
[Site "Budapest"]
[Date "2022.03.17"]
[Round "1.5"]
[White "Csiki, Endre"]
[Black "Seres, Lajos"]
[Result "1-0"]
[ECO "B31"]
[WhiteElo "2320"]
[BlackElo "2387"]
[Annotator "ChessBase"]
[PlyCount "79"]
[EventDate "2022.03.17"]
[EventType "tourn"]
[EventCountry "HUN"]
[SourceTitle "playchess.com"]
[Source "ChessBase"]
[SourceQuality "1"]
[TimeControl "40/5400+30:1800+30"]

1. e4 {[%emt 0:00:13]} c5 {[%emt 0:00:08]} 2. Nf3 {[%emt 0:00:08]} Nc6 {[%emt 0:00:05]} 3. Bb5 {[%emt 0:00:04]} g6 {[%emt 0:00:07]} 4. O-O {[%emt 0:00:05]} Bg7 {[%emt 0:00:04]} 5. c3 {[%emt 0:00:05]} Nf6 {[%emt 0:00:05]} 6. Re1 {[%emt 0:00:02]} O-O {[%emt 0:00:10]} 7. d4 {[%emt 0:00:02]} d5 {[%emt 0:00:09]} 8. e5 {[%emt 0:00:04]} Ne4 {[%emt 0:00:04]} 9. Bxc6 {[%emt 0:00:08]} bxc6 {[%emt 0:00:05]} 10. Be3 {[%emt 0:00:05]} Rb8 {[%emt 0:09:43]} 11. Qc1 {[%emt 0:00:56]} c4 {[%emt 0:09:29]} 12. Nbd2 {[%emt 0:03:41]} Nxd2 {[%emt 0:00:47]} 13. Nxd2 {[%emt 0:00:56]} Bf5 {[%emt 0:31:12]} 14. b3 {[%emt 0:00:28]} Bd3 {[%emt 0:00:50]} 15. Qa3 {[%emt 0:02:37]} Rb7 {[%emt 0:11:39]} 16. Qa4 {[%emt 0:06:38]} Qc7 {[%emt 0:11:07]} 17. bxc4 {[%emt 0:00:48]} Rfb8 {[%emt 0:00:08]} 18. Rec1 {[%emt 0:12:23]} e6 {[%emt 0:04:02]} 19. cxd5 {[%emt 0:10:03]} cxd5 {[%emt 0:00:08]} 20. Qd1 {[%emt 0:03:08]} Bf8 {[%emt 0:10:11]} 21. Qf3 {[%emt 0:03:07]} Bc4 {[%emt 0:02:52]} 22. h4 {[%emt 0:07:16]} Rb2 {[%emt 0:00:24]} 23. a4 {[%emt 0:00:11]} Ra2 {[%emt 0:04:42]} 24. Rxa2 {[%emt 0:05:03]} Bxa2 {[%emt 0:00:05]} 25. h5 {[%emt 0:02:04]} Bb3 {[%emt 0:00:42]} 26. hxg6 {[%emt 0:03:32]} hxg6 {[%emt 0:00:07]} 27. Qh3 {[%emt 0:01:21]} Bxa4 {[%emt 0:00:23]} 28. Nf3 {[%emt 0:00:25]} Bb5 {[%emt 0:02:47]} 29. Bg5 {[%emt 0:07:09]} Bg7 {[%emt 0:00:12]} 30. Qh4 {[%emt 0:02:16]} Kf8 {[%emt 0:02:14]} 31. Bf6 {[%emt 0:00:30]} Bxf6 {[%emt 0:00:23]} 32. exf6 {[%emt 0:00:19]} Ke8 {[%emt 0:00:11]} 33. Rb1 {[%emt 0:09:35]} Qd6 {[%emt 0:00:20]} 34. Ne5 {[%emt 0:00:26]} Rb7 {[%emt 0:00:10]} 35. Qh7 {[%emt 0:06:01]} a6 {[%emt 0:00:43]} 36. Nxg6 {[%emt 0:01:07]} Kd8 {[%emt 0:00:30]} 37. Qg8+ {[%emt 0:00:56]} Kc7 {[%emt 0:00:10]} 38. Qxf7+ {[%emt 0:00:13]} Kb6 {[%emt 0:00:15]} 39. Qxb7+ {[%emt 0:02:27]} Kxb7 {[%emt 0:00:06]} 40. f7 {[%emt 0:00:00]} 1-0

[Event "Vezerkepzo GM March 2022"]
[Site "Budapest"]
[Date "2022.03.18"]
[Round "2.2"]
[White "Kulkarni Bhakti"]
[Black "Csiki, Endre"]
[Result "1-0"]
[ECO "E11"]
[WhiteElo "2388"]
[BlackElo "2320"]
[Annotator "ChessBase"]
[PlyCount "80"]
[EventDate "2022.03.17"]
[EventType "tourn"]
[EventCountry "HUN"]
[SourceTitle "playchess.com"]
[Source "ChessBase"]
[SourceQuality "1"]
[TimeControl "40/5400+30:1800+30"]

1. d4 {[%emt 0:06:17]} d5 {[%emt 0:00:04]} 2. c4 {[%emt 0:00:13]} e6 {[%emt 0:00:04]} 3. g3 {[%emt 0:01:14]} Nf6 {[%emt 0:00:19]} 4. Bg2 {[%emt 0:00:31]} Bb4+ {[%emt 0:00:07]} 5. Bd2 {[%emt 0:00:20]} Be7 {[%emt 0:00:32]} 6. Nf3 {[%emt 0:00:41]} O-O {[%emt 0:00:05]} 7. Qc2 {[%emt 0:00:15]} Nbd7 {[%emt 0:00:15]} 8. O-O {[%emt 0:00:25]} c6 {[%emt 0:00:12]} 9. Rd1 {[%emt 0:03:52]} b6 {[%emt 0:02:58]} 10. Ne5 {[%emt 0:03:42]} Bb7 {[%emt 0:03:52]} 11. Nc3 {[%emt 0:08:42]} Nxe5 {[%emt 0:08:16]} 12. dxe5 {[%emt 0:00:06]} Ng4 {[%emt 0:03:20]} 13. cxd5 {[%emt 0:05:34]} cxd5 {[%emt 0:00:06]} 14. e4 {[%emt 0:06:31]} Bc5 {[%emt 0:02:30]} 15. Be1 {[%emt 0:00:52]} d4 {[%emt 0:11:08]} 16. Nb5 {[%emt 0:11:58]} Nxe5 {[%emt 0:27:15]} 17. b4 {[%emt 0:04:10]} a6 {[%emt 0:02:50]} 18. Na3 {[%emt 0:12:38]} d3 {[%emt 0:04:21]} 19. Qb2 {[%emt 0:15:12]} Bd4 {[%emt 0:00:37]} 20. Bc3 {[%emt 0:00:42]} Bxc3 {[%emt 0:00:21]} 21. Qxc3 {[%emt 0:00:02]} Qf6 {[%emt 0:01:22]} 22. Kh1 {[%emt 0:03:34]} Rac8 {[%emt 0:05:24]} 23. Qd4 {[%emt 0:01:56]} Ng4 {[%emt 0:01:00]} 24. Qxf6 {[%emt 0:05:28]} gxf6 {[%emt 0:00:09]} 25. Kg1 {[%emt 0:00:13]} Rc3 {[%emt 0:04:41]} 26. Nb1 {[%emt 0:00:01]} Rc2 {[%emt 0:00:11]} 27. Nd2 {[%emt 0:00:16]} Rfc8 {[%emt 0:00:20]} 28. h3 {[%emt 0:01:13]} Ne5 {[%emt 0:00:11]} 29. f4 {[%emt 0:00:19]} Nc6 {[%emt 0:00:51]} 30. a3 {[%emt 0:03:02]} Nd4 {[%emt 0:00:30]} 31. Nf1 {[%emt 0:00:47]} Ne2+ {[%emt 0:05:15]} 32. Kh1 {[%emt 0:00:20]} Nc3 {[%emt 0:03:50]} 33. Rxd3 {[%emt 0:00:08]} Nxe4 {[%emt 0:02:55]} 34. Kg1 {[%emt 0:01:48]} Rxg2+ {[%emt 0:00:14]} 35. Kxg2 {[%emt 0:00:06]} Nc5+ {[%emt 0:00:03]} 36. Rf3 {[%emt 0:00:06]} Nb3 {[%emt 0:00:10]} 37. Ra2 {[%emt 0:00:12]} Nd4 {[%emt 0:00:17]} 38. Nd2 {[%emt 0:00:06]} Nxf3 {[%emt 0:00:33]} 39. Nxf3 {[%emt 0:00:02]} Rc3 {[%emt 0:00:05]} 40. Rf2 {[%emt 0:00:00]} Rxa3 {[%emt 0:00:00]} 1-0

[Event "Vezerkepzo GM March 2022"]
[Site "Budapest"]
[Date "2022.03.18"]
[Round "2.3"]
[White "Rathanvel, V S"]
[Black "Akshat, Khamparia"]
[Result "1-0"]
[ECO "B62"]
[WhiteElo "2477"]
[BlackElo "2390"]
[Annotator "ChessBase"]
[PlyCount "99"]
[EventDate "2022.03.17"]
[EventType "tourn"]
[EventCountry "HUN"]
[SourceTitle "playchess.com"]
[Source "ChessBase"]
[SourceQuality "1"]
[TimeControl "40/5400+30:1800+30"]

1. e4 {[%emt 0:00:04]} c5 {[%emt 0:40:25]} 2. Nf3 {[%emt 0:00:10]} d6 {[%emt 0:00:04]} 3. d4 {[%emt 0:00:08]} cxd4 {[%emt 0:00:05]} 4. Nxd4 {[%emt 0:00:06]} Nf6 {[%emt 0:00:05]} 5. Nc3 {[%emt 0:00:07]} Nc6 {[%emt 0:00:01]} 6. Bg5 {[%emt 0:00:11]} e6 {[%emt 0:00:05]} 7. Qd3 {[%emt 0:00:06]} Bd7 {[%emt 0:00:25]} 8. Ndb5 {[%emt 0:01:15]} Nb4 {[%emt 0:02:33]} 9. Qd1 {[%emt 0:00:09]} Qb8 {[%emt 0:01:31]} 10. Bf4 {[%emt 0:01:34]} e5 {[%emt 0:00:44]} 11. Bg5 {[%emt 0:00:06]} a6 {[%emt 0:00:02]} 12. Na3 {[%emt 0:03:04]} b5 {[%emt 0:01:08]} 13. Bxf6 {[%emt 0:00:08]} gxf6 {[%emt 0:00:06]} 14. g3 {[%emt 0:01:41]} Bg7 {[%emt 0:04:21]} 15. Bg2 {[%emt 0:08:40]} O-O {[%emt 0:03:17]} 16. O-O {[%emt 0:00:29]} Ra7 {[%emt 0:08:58]} 17. Qd2 {[%emt 0:03:15]} Nc6 {[%emt 0:05:23]} 18. Nd5 {[%emt 0:00:17]} f5 {[%emt 0:02:01]} 19. exf5 {[%emt 0:05:24]} Bxf5 {[%emt 0:01:26]} 20. Ne3 {[%emt 0:01:00]} Bd7 {[%emt 0:04:02]} 21. Rad1 {[%emt 0:04:32]} f5 {[%emt 0:04:59]} 22. Qxd6 {[%emt 0:16:56]} e4 {[%emt 0:03:18]} 23. c3 {[%emt 0:08:50]} Ne5 {[%emt 0:03:10]} 24. Qxb8 {[%emt 0:01:24]} Rxb8 {[%emt 0:00:01]} 25. Bh3 {[%emt 0:09:57]} Rf8 {[%emt 0:01:37]} 26. Rd5 {[%emt 0:00:26]} Be6 {[%emt 0:02:37]} 27. Rd6 {[%emt 0:01:20]} Bc8 {[%emt 0:00:03]} 28. Rfd1 {[%emt 0:02:54]} Nd3 {[%emt 0:02:40]} 29. Rd2 {[%emt 0:00:40]} Raf7 {[%emt 0:01:17]} 30. f4 {[%emt 0:01:13]} Re8 {[%emt 0:01:24]} 31. Nac2 {[%emt 0:10:04]} Bf8 {[%emt 0:01:03]} 32. Rb6 {[%emt 0:00:14]} Nxb2 {[%emt 0:00:36]} 33. Rb8 {[%emt 0:03:00]} Bc5 {[%emt 0:00:49]} 34. Kf1 {[%emt 0:01:31]} Rff8 {[%emt 0:01:54]} 35. Rd5 {[%emt 0:01:09]} Na4 {[%emt 0:00:57]} 36. Nd4 {[%emt 0:02:02]} Ba7 {[%emt 0:02:07]} 37. Ra8 {[%emt 0:01:44]} Bxd4 {[%emt 0:00:12]} 38. Rxd4 {[%emt 0:00:06]} Nxc3 {[%emt 0:00:06]} 39. a3 {[%emt 0:01:00]} Na4 {[%emt 0:00:47]} 40. Ke1 {[%emt 0:00:00]} Nc5 {[%emt 0:00:00]} 41. Bxf5 {[%emt 0:03:49]} Bb7 {[%emt 0:04:17]} 42. Rxe8 {[%emt 0:05:29]} Rxe8 {[%emt 0:00:02]} 43. Rd6 {[%emt 0:04:23]} a5 {[%emt 0:05:28]} 44. Ng4 {[%emt 0:13:47]} Ra8 {[%emt 0:01:21]} 45. Rh6 {[%emt 0:02:29]} b4 {[%emt 0:00:31]} 46. Rxh7 {[%emt 0:06:04]} bxa3 {[%emt 0:00:37]} 47. Nf6+ {[%emt 0:00:14]} Kf8 {[%emt 0:00:04]} 48. Bg6 {[%emt 0:00:09]} Bd5 {[%emt 0:01:38]} 49. Nxd5 {[%emt 0:00:09]} a2 {[%emt 0:00:03]} 50. Rf7+ {[%emt 0:00:06]} 1-0

[Event "Vezerkepzo GM March 2022"]
[Site "Budapest"]
[Date "2022.03.18"]
[Round "2.5"]
[White "Prraneeth Vuppala"]
[Black "Vantika Agrawal"]
[Result "1-0"]
[ECO "E73"]
[WhiteElo "2400"]
[BlackElo "2381"]
[Annotator "RC"]
[PlyCount "109"]
[EventDate "2022.03.17"]
[EventType "tourn"]
[EventCountry "HUN"]
[SourceTitle "playchess.com"]
[Source "ChessBase"]
[SourceQuality "1"]
[TimeControl "40/5400+30:1800+30"]

1. d4 {[%emt 0:00:14]} Nf6 {[%emt 0:00:35]} 2. c4 {[%emt 0:00:13]} g6 {[%emt 0:00:22]} 3. h4 {[%emt 0:00:35]} Bg7 {[%emt 0:03:18]} 4. Nc3 {[%emt 0:00:32]} d6 {[%emt 0:02:57]} 5. e4 {[%emt 0:00:50]} O-O {[%emt 0:18:49]} 6. Be2 {[%emt 0:01:17]} c5 {[%emt 0:09:54]} 7. d5 {[%emt 0:00:39]} e6 {[%emt 0:04:59]} 8. h5 {[%emt 0:00:41]} exd5 {[%emt 0:00:52]} 9. exd5 {[%emt 0:01:57]} Re8 {[%emt 0:00:52]} 10. h6 {[%emt 0:01:59]} Bh8 {[%emt 0:01:10]} 11. Bg5 {[%emt 0:00:40]} Qb6 {[%emt 0:19:04]} 12. b3 {[%emt 0:03:00]} Ne4 {[%emt 0:00:30]} 13. Nxe4 {[%emt 0:00:51]} Rxe4 {[%emt 0:00:11]} 14. Kf1 {[%emt 0:00:34]} Nd7 {[%emt 0:05:58]} 15. Nf3 {[%emt 0:09:33]} Re8 {[%emt 0:06:39]} 16. Rc1 {[%emt 0:03:39]} Nf6 {[%emt 0:04:48]} 17. Bd3 {[%emt 0:04:12]} Ne4 {[%emt 0:10:18]} 18. Bxe4 {[%emt 0:26:43]} Rxe4 {[%emt 0:00:06]} 19. Nd2 {[%emt 0:00:06]} Re8 {[%emt 0:04:18]} 20. Qf3 {[%emt 0:00:28]} f5 {[%emt 0:00:29]} 21. Qg3 {[%emt 0:12:51]} Bd7 {[%emt 0:00:54]} 22. Bf4 {[%emt 0:02:16]} Qa5 {[%emt 0:02:02]} 23. a4 {[%emt 0:05:28]} Qb4 {[%emt 0:01:09]} 24. Qd3 {[%emt 0:18:00]} Qa3 {[%emt 0:00:30]} 25. Rd1 {[%emt 0:00:30]} Bxa4 {[%emt 0:01:10]} 26. Bxd6 {[%emt 0:00:08]} Bd7 {[%emt 0:00:35]} 27. g3 {[%emt 0:04:56]} b6 {[%emt 0:00:20]} 28. Kg2 {[%emt 0:00:40]} Qb2 {[%emt 0:00:15]} 29. Rhe1 {[%emt 0:00:16]} Qf6 {[%emt 0:01:22]} 30. Bc7 {[%emt 0:00:58]} Qc3 {[%emt 0:00:29]} 31. Nf3 {[%emt 0:00:39]} Rxe1 {[%emt 0:00:30]} 32. Nxe1 {[%emt 0:00:21]} Re8 {[%emt 0:00:18]} 33. Qxc3 {[%emt 0:00:00]} Bxc3 {[%emt 0:00:00]} 34. Nd3 {[%emt 0:00:00]} Bd4 {[%emt 0:00:00]} 35. Rd2 {[%emt 0:00:00]} b5 {[%emt 0:00:00]} 36. Bd6 {[%emt 0:00:00]} bxc4 {[%emt 0:00:00]} 37. bxc4 {[%emt 0:00:00]} a5 {[%emt 0:00:00]} 38. Bxc5 {[%emt 0:00:00]} Bc3 {[%emt 0:00:00]} 39. Rc2 {[%emt 0:00:00]} Bf6 {[%emt 0:00:00]} 40. Bb6 {[%emt 0:00:00]} a4 {[%emt 0:00:00]} 41. Nc5 {[%emt 0:05:34]} Bc8 {[%emt 0:18:36]} 42. Nxa4 {[%emt 0:01:07]} f4 {[%emt 0:00:56]} 43. gxf4 {[%emt 0:01:07]} Bf5 {[%emt 0:02:25]} 44. Rd2 {[%emt 0:01:39]} Re4 {[%emt 0:02:13]} 45. d6 {[%emt 0:18:14]} Rxc4 {[%emt 0:00:38]} 46. Nc5 {[%emt 0:00:05]} Rb4 {[%emt 0:03:08]} 47. Bc7 {[%emt 0:00:05]} Rb5 {[%emt 0:05:09]} 48. Na6 {[%emt 0:00:54]} Be4+ {[%emt 0:04:21]} 49. f3 {[%emt 0:00:15]} Bb7 {[%emt 0:00:29]} 50. Nb8 {[%emt 0:02:31]} Rb3 {[%emt 0:00:40]} 51. d7 {[%emt 0:00:19]} Bxf3+ {[%emt 0:00:15]} 52. Kh2 {[%emt 0:00:08]} Kf7 {[%emt 0:01:11]} 53. d8=Q {[%emt 0:01:26]} Bxd8 {[%emt 0:00:04]} 54. Rxd8 {[%emt 0:00:04]} Ke6 {[%emt 0:00:32]} 55. Nd7 {[%emt 0:01:44]} 1-0

[Event "Vezerkepzo GM March 2022"]
[Site "Budapest"]
[Date "2022.03.19"]
[Round "3.1"]
[White "Vantika Agrawal"]
[Black "Ilincic, Zlatko"]
[Result "1-0"]
[ECO "E14"]
[WhiteElo "2381"]
[BlackElo "2331"]
[Annotator "NA"]
[PlyCount "91"]
[EventDate "2022.03.17"]
[EventType "tourn"]
[EventCountry "HUN"]
[SourceTitle "playchess.com"]
[Source "ChessBase"]
[SourceQuality "1"]
[TimeControl "40/5400+30:1800+30"]

1. d4 {[%emt 0:00:11]} Nf6 {[%emt 0:00:17]} 2. c4 {[%emt 0:00:13]} e6 {[%emt 0:00:09]} 3. Nf3 {[%emt 0:00:20]} Bb4+ {[%emt 0:00:11]} 4. Nbd2 {[%emt 0:00:39]} b6 {[%emt 0:00:42]} 5. a3 {[%emt 0:00:39]} Bxd2+ {[%emt 0:00:17]} 6. Qxd2 {[%emt 0:00:46]} Bb7 {[%emt 0:00:30]} 7. e3 {[%emt 0:00:34]} d6 {[%emt 0:00:25]} 8. Be2 {[%emt 0:00:40]} Nbd7 {[%emt 0:00:30]} 9. O-O {[%emt 0:00:41]} Ne4 {[%emt 0:10:17]} 10. Qc2 {[%emt 0:00:44]} c5 {[%emt 0:05:23]} 11. Rd1 {[%emt 0:07:23]} Qf6 $16 {[%emt 0:08:51]} (11... f5 $14) 12. b4 {[%emt 0:34:34]} cxd4 {[%emt 0:25:13]} 13. exd4 {[%emt 0:04:14]} d5 {[%emt 0:07:01]} 14. Bd3 {[%emt 0:11:12]} O-O {[%emt 0:01:53]} 15. Bb2 {[%emt 0:05:21]} Qf4 {[%emt 0:05:13]} 16. c5 {[%emt 0:01:25]} Rfc8 {[%emt 0:00:12]} 17. Qe2 {[%emt 0:02:52]} a6 {[%emt 0:02:05]} 18. Rac1 {[%emt 0:03:10]} Qb8 {[%emt 0:14:44]} 19. Nd2 {[%emt 0:11:14]} Nef6 {[%emt 0:02:26]} 20. Nb3 {[%emt 0:03:43]} Qa7 {[%emt 0:04:49]} 21. a4 {[%emt 0:01:38]} Ne4 {[%emt 0:03:38]} 22. f3 {[%emt 0:02:30]} Nef6 {[%emt 0:00:40]} 23. Qf2 {[%emt 0:01:14]} Nf8 {[%emt 0:01:48]} 24. Ra1 {[%emt 0:00:50]} Ng6 {[%emt 0:01:16]} 25. b5 {[%emt 0:00:41]} Re8 {[%emt 0:00:14]} 26. a5 {[%emt 0:03:10]} bxc5 {[%emt 0:00:47]} 27. b6 {[%emt 0:00:22]} Qb8 {[%emt 0:00:18]} 28. Nxc5 {[%emt 0:00:11]} Nf8 {[%emt 0:00:41]} 29. Qe2 {[%emt 0:00:29]} N8d7 {[%emt 0:01:54]} 30. Nxa6 {[%emt 0:00:56]} Bxa6 {[%emt 0:00:07]} 31. Bxa6 {[%emt 0:00:02]} e5 {[%emt 0:00:07]} 32. Bb5 {[%emt 0:01:14]} Re6 {[%emt 0:00:09]} 33. Qc2 {[%emt 0:02:00]} e4 {[%emt 0:00:29]} 34. fxe4 {[%emt 0:00:29]} Rxe4 {[%emt 0:02:55]} 35. h3 {[%emt 0:00:37]} Qf4 {[%emt 0:00:53]} 36. b7 {[%emt 0:00:40]} Rb8 {[%emt 0:00:53]} 37. a6 {[%emt 0:00:10]} Qe3+ {[%emt 0:00:18]} 38. Qf2 {[%emt 0:00:23]} Qxf2+ {[%emt 0:00:39]} 39. Kxf2 {[%emt 0:00:03]} Nb6 {[%emt 0:00:07]} 40. a7 {[%emt 0:00:00]} Rxb7 {[%emt 0:00:00]} 41. a8=Q+ {[%emt 0:02:52]} Nxa8 {[%emt 0:00:21]} 42. Rxa8+ {[%emt 0:00:03]} Ne8 {[%emt 0:00:17]} 43. Bxe8 {[%emt 0:03:57]} Rxb2+ {[%emt 0:00:33]} 44. Kg1 {[%emt 0:00:05]} g6 {[%emt 0:00:29]} 45. Bc6+ {[%emt 0:00:47]} Kg7 {[%emt 0:00:11]} 46. Bxd5 {[%emt 0:00:02]} 1-0